bitfinex/quotes_BTCUSD_20250115
["timestamp","ask_amount","ask_price","bid_price","bid_amount"]
[1736959525717,0.56587792,99132.0,99131.0,4.99e-05]
[1736959525928,0.56587792,99132.0,99131.0,0.0010499]
[1736959525929,0.34697792,99132.0,99131.0,0.0010499]
[1736959526127,0.34697792,99132.0,99131.0,0.00147135]
[1736959526128,0.219751,99132.0,99131.0,0.00147135]
[1736959526366,0.002,99132.0,99131.0,0.00047135]
[1736959526574,0.01,99132.0,99131.0,0.10655277]
[1736959526783,0.01,99132.0,99131.0,0.00618282]
[1736959527109,0.014,99132.0,99131.0,0.00618282]
[1736959527484,0.029,99132.0,99131.0,0.00132585]
[1736959527690,0.03,99132.0,99131.0,0.00632585]
[1736959527848,0.028,99132.0,99131.0,0.00632585]
[1736959528254,0.03,99132.0,99131.0,0.00632585]
[1736959528642,0.028,99132.0,99131.0,0.00632585]
[1736959528888,0.024,99132.0,99131.0,1.50232585]
[1736959529091,0.023,99132.0,99131.0,1.50232585]
[1736959529233,0.023,99132.0,99131.0,1.50925501]
[1736959529435,0.023,99132.0,99131.0,0.00725501]
[1736959529649,0.023,99132.0,99131.0,0.00132585]
[1736959529848,0.025,99132.0,99131.0,0.00132585]
[1736959530281,0.027,99132.0,99131.0,0.00132585]
[1736959530690,0.023,99132.0,99131.0,0.00132585]
[1736959530907,0.02626098,99132.0,99131.0,0.00132585]
[1736959531111,0.02626098,99132.0,99131.0,0.0009044]
[1736959531321,0.025,99132.0,99131.0,0.0009044]
[1736959531725,0.02626109,99132.0,99131.0,0.0019044]
[1736959532127,0.02626109,99132.0,99131.0,0.0009044]
[1736959532353,0.02426109,99132.0,99131.0,0.0009044]
[1736959532580,0.02626109,99132.0,99131.0,0.0009044]
[1736959533033,0.023,99132.0,99131.0,0.0009044]
[1736959533279,0.025,99132.0,99131.0,0.0009044]
[1736959533446,0.025,99132.0,99131.0,0.00132585]
[1736959533876,0.28696799,99132.0,99131.0,0.0009044]
[1736959534093,0.28570692,99132.0,99131.0,0.0009044]
[1736959537706,0.18148,99132.0,99131.0,0.0009044]
[1736959538071,0.18148,99132.0,99131.0,0.00132585]
[1736959538274,0.175,99132.0,99131.0,0.00132585]
[1736959538480,0.03148,99132.0,99131.0,0.00132585]
[1736959538880,0.03148,99132.0,99131.0,0.0009044]
[1736959538881,0.13696794,99132.0,99131.0,0.0009044]
[1736959544292,0.28696794,99132.0,99131.0,0.0009044]
[1736959544501,0.31704346,99132.0,99131.0,0.0009044]
[1736959544671,0.39334346,99132.0,99131.0,0.0009044]
[1736959549525,0.31704346,99132.0,99131.0,0.0009044]
[1736959550986,0.28570692,99132.0,99131.0,0.0009044]
[1736959551433,0.31705147,99132.0,99131.0,0.0009044]
[1736959551897,0.002,99132.0,99131.0,0.00132585]
[1736959553031,0.224751,99132.0,99131.0,0.00132585]
[1736959553241,0.224751,99132.0,99131.0,0.00232585]
[1736959554957,0.226751,99132.0,99131.0,0.00132585]
[1736959556265,0.226751,99132.0,99131.0,0.0009044]
[1736959556620,0.383231,99132.0,99131.0,0.00132585]
[1736959558187,0.383231,99132.0,99131.0,0.0009044]
[1736959558386,0.41463823,99132.0,99131.0,0.0009044]
[1736959558586,0.51886515,99132.0,99131.0,0.0009044]
[1736959559794,0.40815823,99132.0,99131.0,0.00132585]
[1736959560035,0.41463823,99132.0,99131.0,0.00132585]
[1736959560237,0.383231,99132.0,99131.0,0.00132585]
[1736959561592,0.48745792,99132.0,99131.0,0.0009044]
[1736959561786,0.51888886,99132.0,99131.0,0.0009044]
[1736959562192,0.51888886,99132.0,99131.0,0.00132585]
[1736959562193,0.41466194,99132.0,99131.0,0.00132585]
[1736959562395,0.383231,99132.0,99131.0,0.00132585]
[1736959562626,0.51889277,99132.0,99131.0,0.0009044]
[1736959564001,0.60129277,99132.0,99131.0,0.0009044]
[1736959565221,0.59929277,99132.0,99131.0,0.0009044]
[1736959565407,0.59929277,99132.0,99131.0,4e-07]
[1736959565607,0.60729277,99132.0,99131.0,0.0010004]
[1736959565809,0.60829277,99132.0,99131.0,0.0010004]
[1736959565989,0.60829277,99132.0,99131.0,4e-07]
[1736959566193,0.71151969,99132.0,99131.0,4e-07]
[1736959566403,0.201818,99099.0,99098.0,0.00692745]
[1736959566607,0.231298,99099.0,99098.0,0.00692745]
[1736959567771,0.23143908,99099.0,99098.0,0.00692745]
[1736959568340,0.23243908,99099.0,99098.0,0.00692745]
[1736959569472,0.23243908,99099.0,99098.0,0.00892745]
[1736959571032,0.23143908,99099.0,99098.0,0.00692745]
[1736959571398,0.22495908,99099.0,99098.0,0.00692745]
[1736959571598,0.23143908,99099.0,99098.0,1.50692745]
[1736959571798,0.23143908,99099.0,99098.0,1.51166797]
[1736959572011,0.23343908,99099.0,99098.0,1.51166797]
[1736959572210,0.23143908,99099.0,99098.0,0.01166797]
[1736959572411,0.23143908,99099.0,99098.0,0.01124652]
[1736959572626,0.23143908,99099.0,99098.0,0.006506]
[1736959573047,0.485666,99099.0,99098.0,0.006506]
[1736959573243,0.485666,99099.0,99098.0,0.007506]
[1736959573440,0.486666,99099.0,99098.0,0.007506]
[1736959573641,0.38243908,99099.0,99098.0,0.007506]
[1736959573916,0.38243908,99099.0,99098.0,0.00692745]
[1736959574084,0.38443908,99099.0,99098.0,0.00692745]
[1736959574292,0.37795908,99099.0,99098.0,0.00692745]
[1736959574492,0.38443908,99099.0,99098.0,0.00692745]
[1736959574651,0.38343908,99099.0,99098.0,0.00692745]
[1736959574849,0.38343908,99099.0,99098.0,1.50692745]
[1736959575082,0.38743908,99099.0,99098.0,1.50692745]
[1736959575314,0.38343908,99099.0,99098.0,1.51167704]
[1736959575527,0.38343908,99099.0,99098.0,0.01167704]
[1736959575880,0.38343908,99099.0,99098.0,0.00692745]
[1736959576104,0.38343908,99099.0,99098.0,1.50692745]
[1736959576328,0.38343908,99099.0,99098.0,1.51167445]
[1736959576951,0.38343908,99099.0,99098.0,0.01167445]
[1736959577153,0.38343908,99099.0,99098.0,0.00692745]
[1736959578311,0.38143908,99099.0,99098.0,0.00692745]
[1736959578642,0.38243908,99099.0,99098.0,0.00692745]
[1736959578873,0.38143908,99099.0,99098.0,0.00692745]
[1736959579039,0.38443908,99099.0,99098.0,0.00692745]
[1736959579439,0.485666,99099.0,99098.0,0.006506]
[1736959579646,0.51805487,99099.0,99098.0,0.006506]
[1736959580091,0.52205487,99099.0,99098.0,0.006506]
[1736959580289,0.37485,99083.0,99082.0,0.00042145]
[1736959580468,0.173,99082.0,99079.0,0.0003]
[1736959580671,0.27722692,99082.0,99079.0,0.0003]
[1736959581781,0.173,99082.0,99081.0,0.08512751]
[1736959582944,0.20185,99083.0,99082.0,0.00042145]
[1736959583567,0.20185,99083.0,99082.0,1.50042145]
[1736959583810,0.20185,99083.0,99082.0,1.50422486]
[1736959584009,0.22485,99083.0,99082.0,1.58092486]
[1736959584960,0.22485,99083.0,99082.0,1.62722486]
[1736959585161,0.20184,99089.0,99088.0,0.00042145]
[1736959585404,0.00648,99106.0,99098.0,0.00042145]
[1736959585724,0.201818,99100.0,99098.0,0.00042145]
[1736959586373,0.2018,99108.0,99098.0,0.18134837]
[1736959586578,0.2018,99108.0,99098.0,0.07712145]
[1736959586786,0.20195908,99099.0,99098.0,0.08191834]
[1736959587197,0.22495908,99099.0,99098.0,0.07812145]
[1736959587590,0.22595908,99099.0,99098.0,0.07812145]
[1736959588007,0.22595908,99099.0,99098.0,0.07712145]
[1736959588343,0.22595908,99099.0,99098.0,0.00342145]
[1736959588764,0.22595908,99099.0,99091.0,0.0767]
[1736959588765,0.201831,99093.0,99091.0,0.0767]
[1736959588964,0.023,99092.0,99091.0,0.07712145]
[1736959589426,0.023,99092.0,99091.0,1.57712145]
[1736959589571,0.023,99092.0,99091.0,1.50042145]
[1736959589995,0.023,99092.0,99091.0,0.002]
[1736959589996,0.27722692,99092.0,99091.0,0.002]
[1736959590415,0.30958093,99092.0,99091.0,0.002]
[1736959591249,0.37485,99083.0,99082.0,0.0008547]
[1736959591457,0.51692197,99083.0,99082.0,0.0008547]
[1736959592786,0.51892197,99083.0,99082.0,0.0008547]
[1736959593162,0.51692197,99083.0,99082.0,0.0008547]
[1736959593750,0.52592197,99083.0,99082.0,0.0008547]
[1736959593961,0.51692197,99083.0,99082.0,0.0008547]
[1736959594142,0.52592197,99083.0,99082.0,0.0008547]
[1736959594590,0.52092197,99083.0,99082.0,0.0008547]
[1736959595008,0.52992197,99083.0,99082.0,0.0008547]
[1736959595231,0.59819887,99083.0,99082.0,0.0008547]
[1736959595407,0.52592197,99083.0,99082.0,0.0008547]
[1736959595605,0.49755692,99083.0,99082.0,0.0008547]
[1736959596433,0.52893165,99083.0,99082.0,0.0008547]
[1736959596798,0.49693165,99083.0,99082.0,0.0008547]
[1736959596998,0.49655692,99083.0,99082.0,0.0008547]
[1736959597408,0.52793268,99083.0,99082.0,0.0008547]
[1736959597811,0.51993268,99083.0,99082.0,0.0008547]
[1736959598055,0.51693268,99083.0,99082.0,0.0008547]
[1736959598267,0.52293268,99083.0,99082.0,0.0008547]
[1736959598476,0.51893268,99083.0,99082.0,0.0008547]
[1736959598849,0.52493268,99083.0,99082.0,0.0008547]
[1736959599050,0.52793268,99083.0,99082.0,0.0008547]
[1736959600588,0.49655692,99083.0,99082.0,0.0008547]
[1736959601089,0.52791293,99083.0,99082.0,0.0008547]
[1736959601463,0.52491293,99083.0,99082.0,0.0008547]
[1736959601766,0.51991293,99083.0,99082.0,0.0008547]
[1736959602004,0.52791293,99083.0,99082.0,0.0008547]
[1736959602419,0.46707692,99083.0,99082.0,0.0008547]
[1736959602627,0.21933,99083.0,99082.0,0.00127615]
[1736959602848,0.20985,99083.0,99082.0,0.00127615]
[1736959603026,0.36933,99083.0,99082.0,0.00127615]
[1736959603250,0.39233,99083.0,99082.0,0.00127615]
[1736959604201,0.38133,99083.0,99082.0,0.00127615]
[1736959604411,0.37885,99083.0,99082.0,0.00127615]
[1736959604621,0.38633,99083.0,99082.0,0.00127615]
[1736959604819,0.38233,99083.0,99082.0,0.00127615]
[1736959605023,0.38433,99083.0,99082.0,0.00127615]
[1736959605665,0.38333,99083.0,99082.0,0.00127615]
[1736959605883,0.002,99083.0,99082.0,0.00127615]
[1736959606334,0.002,99083.0,99082.0,0.00493057]
[1736959606574,0.00189487,99083.0,99082.0,1.68810307]
[1736959606773,0.023,99091.0,99082.0,1.68810307]
[1736959606953,0.023,99091.0,99083.0,0.10422692]
[1736959607150,0.00648,99095.0,99083.0,0.10422692]
[1736959607453,0.023,99091.0,99083.0,0.10786939]
[1736959607646,0.023,99091.0,99084.0,1.5]
[1736959608093,0.023,99091.0,99085.0,0.00362966]
[1736959608300,0.023,99091.0,99090.0,0.00042145]
[1736959608710,0.023,99091.0,99090.0,0.00404196]
[1736959608711,0.024,99091.0,99090.0,0.00404196]
[1736959608889,0.024,99091.0,99090.0,0.00042145]
[1736959609093,0.024,99091.0,99090.0,0.00404196]
[1736959609299,0.024,99091.0,99090.0,0.00042145]
[1736959609479,0.024,99091.0,99090.0,0.00404226]
[1736959609683,0.024,99091.0,99090.0,0.00242145]
[1736959609879,0.024,99091.0,99090.0,0.00604226]
[1736959610085,0.023,99091.0,99090.0,0.00242145]
[1736959610284,0.024,99091.0,99090.0,0.00604361]
[1736959610483,0.023,99091.0,99090.0,0.00242145]
[1736959610685,0.023,99091.0,99090.0,0.00604361]
[1736959611627,0.023,99091.0,99090.0,0.00404361]
[1736959611811,0.023,99091.0,99090.0,0.00242145]
[1736959612016,0.02479571,99091.0,99090.0,0.00242145]
[1736959612984,0.02479571,99091.0,99090.0,0.00042145]
[1736959613186,0.38310971,99091.0,99090.0,0.00042145]
[1736959613387,0.37810971,99091.0,99090.0,0.00242145]
[1736959613585,0.37910971,99091.0,99090.0,0.00242145]
[1736959613743,0.37810971,99091.0,99090.0,0.00242145]
[1736959613947,0.48333663,99091.0,99090.0,0.002]
[1736959614349,0.48233663,99091.0,99090.0,0.002]
[1736959614569,0.201844,99086.0,99085.0,0.00042145]
[1736959615390,0.351838,99089.0,99088.0,0.00042145]
[1736959615576,0.15648,99089.0,99088.0,0.07652145]
[1736959615987,0.173,99089.0,99088.0,1.58015099]
[1736959616566,0.023,99089.0,99088.0,1.58015099]
[1736959616760,0.00827571,99091.0,99090.0,0.00042145]
[1736959616964,0.01227571,99091.0,99090.0,0.00042145]
[1736959617198,0.01227571,99091.0,99090.0,0.00405018]
[1736959617199,0.03527571,99091.0,99090.0,0.00405018]
[1736959617715,0.03127571,99091.0,99090.0,0.00405018]
[1736959618689,0.03227571,99091.0,99090.0,0.00605018]
[1736959618927,0.03227571,99091.0,99090.0,0.00242145]
[1736959619376,0.201847,99085.0,99084.0,0.00042145]
[1736959619554,0.224847,99085.0,99084.0,0.00042145]
[1736959620449,0.023,99085.0,99084.0,0.00042145]
[1736959620850,0.00179571,99091.0,99090.0,0.00042145]
[1736959621176,0.02479571,99091.0,99090.0,0.07652145]
[1736959621575,0.02479571,99091.0,99090.0,0.07752145]
[1736959621778,0.02479571,99091.0,99090.0,1.58452609]
[1736959622276,0.02479571,99091.0,99090.0,1.58352609]
[1736959622475,0.02479571,99091.0,99090.0,1.58552609]
[1736959623388,0.02579571,99091.0,99090.0,1.58352609]
[1736959623588,0.02479571,99091.0,99090.0,1.58352609]
[1736959624659,0.00179571,99091.0,99090.0,1.58552609]
[1736959624862,0.00179571,99091.0,99090.0,0.08552609]
[1736959625205,0.02479571,99091.0,99090.0,0.08352609]
[1736959625579,0.02479571,99091.0,99090.0,0.08552609]
[1736959626006,0.02479571,99091.0,99090.0,0.08352609]
[1736959626387,0.02479571,99091.0,99090.0,0.08552609]
[1736959626565,0.02579571,99091.0,99090.0,0.08552609]
[1736959626983,0.02479571,99091.0,99090.0,0.08552609]
[1736959627854,0.02479571,99091.0,99090.0,0.08352609]
[1736959628060,0.02579571,99091.0,99090.0,0.08552609]
[1736959628714,0.02579571,99091.0,99090.0,0.00042145]
[1736959628899,0.02579571,99091.0,99090.0,0.00242145]
[1736959629390,0.02579571,99091.0,99090.0,0.00042145]
[1736959629607,0.02579571,99091.0,99090.0,0.00242145]
[1736959629780,0.02479571,99091.0,99090.0,0.00242145]
[1736959633219,0.02479571,99091.0,99090.0,1.50242145]
[1736959633642,0.02479571,99091.0,99090.0,1.50742273]
[1736959635407,0.02479571,99091.0,99090.0,1.50827773]
[1736959637300,0.02479571,99091.0,99090.0,0.00827773]
[1736959637709,0.02479571,99091.0,99090.0,0.002855]
[1736959638417,0.02479571,99091.0,99090.0,0.000855]
[1736959638824,0.02579571,99091.0,99090.0,0.000855]
[1736959639222,0.02579571,99091.0,99090.0,0.00127645]
[1736959641079,0.03227571,99091.0,99090.0,0.00127645]
[1736959641482,0.02579571,99091.0,99090.0,0.00127645]
[1736959641703,0.02479571,99091.0,99090.0,0.00227645]
[1736959642116,0.02479571,99091.0,99090.0,0.00812062]
[1736959642294,0.02479571,99091.0,99090.0,0.00127645]
[1736959642495,0.02479571,99091.0,99090.0,0.00712062]
[1736959642859,0.02479571,99091.0,99090.0,1.50712062]
[1736959642860,0.02579571,99091.0,99090.0,1.50712062]
[1736959642991,0.02479571,99091.0,99090.0,1.50712062]
[1736959644188,0.02479571,99091.0,99090.0,1.50912062]
[1736959644588,0.02479571,99091.0,99090.0,1.50712062]
[1736959644892,0.02479571,99091.0,99090.0,1.50812062]
[1736959645772,0.02479571,99091.0,99090.0,1.50712062]
[1736959646023,0.02479571,99091.0,99090.0,1.61134754]
[1736959646024,0.00179571,99091.0,99090.0,1.61134754]
[1736959646231,0.00179571,99091.0,99090.0,1.93574754]
[1736959646435,0.0017955,99092.0,99091.0,0.62985545]
[1736959646641,0.00179487,99131.0,99098.0,0.52664145]
[1736959646858,0.00179487,99131.0,99098.0,0.63086837]
[1736959647063,0.00179487,99131.0,99130.0,0.07802145]
[1736959647483,0.00179487,99131.0,99130.0,0.08378594]
[1736959647684,0.00179487,99131.0,99130.0,0.00618594]
[1736959648099,0.00179487,99131.0,99130.0,0.00042145]
[1736959648679,0.00179487,99131.0,99130.0,0.00342145]
[1736959649020,0.02479487,99131.0,99130.0,1.50342145]
[1736959649445,0.02479487,99131.0,99130.0,1.51027969]
[1736959649846,0.02579487,99131.0,99130.0,0.01627969]
[1736959650229,0.17479487,99131.0,99130.0,0.00727969]
[1736959650430,0.17479487,99131.0,99130.0,0.00542145]
[1736959650768,0.17479487,99131.0,99130.0,0.00042145]
[1736959650990,0.17679487,99131.0,99130.0,0.00042145]
[1736959651894,0.17779487,99131.0,99130.0,0.00042145]
[1736959652870,0.17579487,99131.0,99130.0,0.00042145]
[1736959653848,0.17479487,99131.0,99130.0,0.00042145]
[1736959654422,0.17479487,99131.0,99130.0,0.00142145]
[1736959655085,0.17479487,99131.0,99130.0,0.00242145]
[1736959656472,0.17479487,99131.0,99130.0,0.002]
[1736959656954,0.17479487,99131.0,99130.0,0.00242145]
[1736959657392,0.17479487,99131.0,99130.0,0.002]
[1736959657612,0.201767,99124.0,99123.0,0.00042145]
[1736959657815,0.201771,99122.0,99121.0,0.00042145]
[1736959657989,0.22594742,99122.0,99121.0,0.00042145]
[1736959658194,0.201782,99117.0,99114.0,0.00042145]
[1736959658400,0.023,99118.0,99117.0,0.00042145]
[1736959658636,0.224779,99118.0,99117.0,0.00042145]
[1736959659466,0.224779,99118.0,99117.0,0.00142145]
[1736959661276,0.224779,99118.0,99117.0,0.00242145]
[1736959661946,0.231219,99118.0,99117.0,0.00242145]
[1736959664531,0.00179487,99131.0,99130.0,0.00042145]
[1736959664943,0.00179487,99131.0,99130.0,0.10464837]
[1736959665146,0.00179487,99131.0,99130.0,1.61150563]
[1736959665684,0.00579487,99131.0,99130.0,1.61150563]
[1736959665864,0.00179487,99131.0,99130.0,1.61150563]
[1736959666265,0.00279487,99131.0,99130.0,1.61350563]
[1736959666497,0.00379487,99131.0,99130.0,1.61350563]
[1736959666697,0.00379487,99131.0,99130.0,1.61037763]
[1736959666895,0.00279487,99131.0,99130.0,1.61037763]
[1736959667300,0.00279487,99131.0,99130.0,1.61337763]
[1736959670740,0.00267318,99131.0,99130.0,1.61295618]
[1736959670937,0.00267318,99131.0,99130.0,1.61337763]
[1736959671151,0.02567318,99131.0,99130.0,0.00915071]
[1736959671539,0.02567318,99131.0,99130.0,0.00542145]
[1736959672538,0.02567318,99131.0,99130.0,0.00242145]
[1736959672910,0.00267318,99131.0,99130.0,0.00242145]
[1736959673060,0.00167318,99131.0,99130.0,0.00042145]
[1736959673469,0.00367318,99131.0,99130.0,0.00513838]
[1736959673682,0.00167318,99131.0,99130.0,0.00142145]
[1736959673930,0.00167318,99131.0,99130.0,0.00513838]
[1736959674130,0.00267318,99131.0,99130.0,0.00342145]
[1736959674334,0.00267318,99131.0,99130.0,1.51013838]
[1736959674539,0.00167318,99131.0,99130.0,1.50342145]
[1736959674738,0.00267318,99131.0,99130.0,1.6929653]
[1736959674941,0.00267318,99131.0,99130.0,1.9955953]
[1736959675117,0.00267318,99131.0,99130.0,1.99517385]
[1736959675322,0.00267318,99131.0,99130.0,1.9955953]
[1736959675522,0.00267318,99131.0,99130.0,1.99517385]
[1736959675782,0.00267318,99131.0,99130.0,1.9955953]
[1736959676405,0.00267318,99131.0,99130.0,1.89136838]
[1736959676782,0.20442618,99131.0,99130.0,1.81276838]
[1736959677591,0.22642618,99131.0,99130.0,1.80676838]
[1736959677791,0.22642618,99131.0,99130.0,1.80976838]
[1736959678273,0.37642618,99131.0,99130.0,1.80976838]
[1736959678878,0.37642618,99131.0,99130.0,1.81176838]
[1736959679579,0.37642618,99131.0,99130.0,1.80676838]
[1736959679778,0.37642618,99131.0,99130.0,1.81076838]
[1736959679935,0.37642618,99131.0,99130.0,1.80876838]
[1736959680117,0.37642618,99131.0,99130.0,1.80676838]
[1736959680541,0.37642618,99131.0,99130.0,1.80776838]
[1736959680962,0.17467318,99131.0,99130.0,1.80776838]
[1736959681798,0.17467318,99131.0,99130.0,1.80676838]
[1736959682189,0.17567318,99131.0,99130.0,1.80676838]
[1736959682586,0.17467318,99131.0,99130.0,1.80676838]
[1736959682941,0.00467318,99131.0,99130.0,1.9905953]
[1736959683143,0.00167318,99131.0,99130.0,1.9905953]
[1736959683446,0.00167318,99131.0,99130.0,1.9915953]
[1736959683940,0.00167318,99131.0,99130.0,1.9905953]
[1736959684146,0.00267318,99131.0,99130.0,1.9935953]
[1736959685162,0.00267318,99131.0,99130.0,1.80976838]
[1736959685369,0.02567318,99131.0,99130.0,1.81276838]
[1736959685584,0.02467318,99131.0,99130.0,1.80976838]
[1736959685790,0.02467318,99131.0,99130.0,1.81176838]
[1736959685989,0.02467318,99131.0,99130.0,1.80876838]
[1736959686210,0.02467318,99131.0,99130.0,1.80976838]
[1736959688127,0.02467318,99131.0,99130.0,1.80876838]
[1736959688498,0.02467318,99131.0,99130.0,1.80776838]
[1736959688689,0.02467318,99131.0,99130.0,1.80876838]
[1736959688882,0.02467318,99131.0,99130.0,1.80776838]
[1736959689131,0.02467318,99131.0,99130.0,1.80676838]
[1736959689447,0.02467318,99131.0,99130.0,1.80976838]
[1736959689619,0.02467318,99131.0,99130.0,1.80676838]
[1736959690058,0.02467318,99131.0,99130.0,1.80976838]
[1736959690258,0.02467318,99131.0,99130.0,1.80776838]
[1736959690794,0.00167318,99131.0,99130.0,1.81076838]
[1736959691283,0.00167318,99131.0,99130.0,1.81162298]
[1736959691644,0.00167318,99131.0,99130.0,1.9158499]
[1736959691846,0.00167318,99131.0,99130.0,1.9128499]
[1736959692290,0.00167318,99131.0,99130.0,1.9158499]
[1736959692451,0.00167318,99131.0,99130.0,1.9148499]
[1736959692851,0.00167318,99131.0,99130.0,1.9138499]
[1736959693049,0.00067318,99131.0,99130.0,1.9168499]
[1736959693330,0.00067318,99131.0,99130.0,1.81062298]
[1736959693533,0.00067318,99131.0,99130.0,0.31062298]
[1736959693737,0.00067318,99131.0,99130.0,0.31262298]
[1736959693857,0.02367318,99131.0,99130.0,0.31262298]
[1736959694063,0.02367318,99131.0,99130.0,0.31062298]
[1736959694508,0.17367318,99131.0,99130.0,0.30862298]
[1736959695724,0.17367318,99131.0,99130.0,0.31162298]
[1736959695858,0.17367318,99131.0,99130.0,0.31020153]
[1736959695859,0.17467318,99131.0,99130.0,0.31020153]
[1736959696059,0.17367318,99131.0,99130.0,0.30720153]
[1736959696295,0.17367318,99131.0,99130.0,0.30862298]
[1736959696494,0.17367318,99131.0,99130.0,0.31062298]
[1736959696748,0.17367318,99131.0,99130.0,0.30762298]
[1736959696889,0.17367318,99131.0,99130.0,0.30862298]
[1736959697090,0.18011318,99131.0,99130.0,0.30962298]
[1736959697347,0.17367318,99131.0,99130.0,0.30962298]
[1736959697567,0.18011318,99131.0,99130.0,0.30962298]
[1736959697939,0.00067318,99131.0,99130.0,0.30962298]
[1736959698123,0.00067318,99131.0,99130.0,0.30862298]
[1736959698523,0.00067318,99131.0,99130.0,1.80862298]
[1736959699346,0.00067318,99131.0,99130.0,1.9118499]
[1736959699521,0.00167318,99131.0,99130.0,1.9590499]
[1736959699945,0.00067318,99131.0,99130.0,1.9590499]
[1736959700154,0.00067318,99131.0,99130.0,2.0610499]
[1736959700459,0.00067318,99131.0,99130.0,2.0600499]
[1736959700657,0.00067318,99131.0,99130.0,2.0590499]
[1736959700858,0.00167318,99131.0,99130.0,2.0620499]
[1736959701042,0.00067318,99131.0,99130.0,2.0630499]
[1736959701843,0.00067318,99131.0,99130.0,2.1630499]
[1736959702070,0.00067318,99131.0,99130.0,2.2415499]
[1736959702512,0.00179446,99147.0,99146.0,0.42784345]
[1736959702750,0.00179446,99147.0,99146.0,1.83997861]
[1736959702963,0.00179446,99147.0,99146.0,1.84365566]
[1736959703174,0.00179446,99147.0,99146.0,1.94365566]
[1736959703375,0.00179446,99147.0,99146.0,3.44365566]
[1736959704207,0.00279446,99147.0,99146.0,3.05193366]
[1736959704441,0.00279446,99147.0,99146.0,3.00473366]
[1736959705757,0.00279446,99147.0,99146.0,2.99973366]
[1736959705979,0.00179446,99147.0,99146.0,2.99973366]
[1736959706307,0.00179446,99147.0,99146.0,3.00073366]
[1736959706308,0.00279446,99147.0,99146.0,3.00073366]
[1736959706515,0.00179446,99147.0,99146.0,1.8066785]
[1736959706824,0.00279446,99147.0,99146.0,1.8156785]
[1736959707407,0.02579446,99147.0,99146.0,1.8126785]
[1736959707598,0.02479446,99147.0,99146.0,1.8066785]
[1736959708068,0.02479446,99147.0,99146.0,1.8106785]
[1736959708734,0.02479446,99147.0,99146.0,1.8136785]
[1736959709149,0.02479446,99147.0,99146.0,1.8106785]
[1736959709534,0.02479446,99147.0,99146.0,1.8126785]
[1736959709845,0.02479446,99147.0,99146.0,1.8086785]
[1736959710318,0.02579446,99147.0,99146.0,1.8136785]
[1736959710907,0.02479446,99147.0,99146.0,0.30825705]
[1736959711204,0.02479446,99147.0,99146.0,0.3086785]
[1736959711404,0.02479446,99147.0,99146.0,1.8086785]
[1736959712373,0.00179446,99147.0,99146.0,1.8116785]
[1736959713626,0.02479446,99147.0,99146.0,1.8116785]
[1736959714296,0.00179446,99147.0,99146.0,1.8116785]
[1736959714495,0.00179446,99147.0,99146.0,3.00183366]
[1736959716767,0.00179446,99147.0,99146.0,3.10183366]
[1736959716988,0.00179446,99147.0,99146.0,3.09983366]
[1736959717172,0.00179446,99147.0,99146.0,3.09683366]
[1736959717386,0.00179446,99147.0,99146.0,3.09983366]
[1736959718370,0.00179446,99147.0,99146.0,3.10183366]
[1736959718572,0.00179446,99147.0,99146.0,3.09883366]
[1736959718866,0.00179446,99147.0,99146.0,3.09683366]
[1736959719035,0.00279446,99147.0,99146.0,3.10383366]
[1736959719188,0.00179446,99147.0,99146.0,3.10083366]
[1736959719611,0.00279446,99147.0,99146.0,3.10883366]
[1736959721912,0.00179446,99147.0,99146.0,2.81600674]
[1736959722119,0.00279446,99147.0,99146.0,2.92423366]
[1736959722625,0.00279446,99147.0,99146.0,2.92823366]
[1736959723914,0.00279446,99147.0,99146.0,1.8186785]
[1736959724116,0.02579446,99147.0,99146.0,1.8186785]
[1736959724320,0.25219446,99147.0,99146.0,0.31825705]
[1736959724520,0.40502138,99147.0,99146.0,0.31825705]
[1736959724681,0.40502138,99147.0,99146.0,0.2247335]
[1736959724890,0.40502138,99147.0,99146.0,0.1238735]
[1736959724891,0.53627469,99147.0,99146.0,0.1238735]
[1736959725100,0.351751,99132.0,99120.0,1.5]
[1736959725350,0.48541792,99132.0,99110.0,0.00042145]
[1736959725758,0.48541792,99132.0,99115.0,0.00042145]
[1736959725962,0.48541792,99132.0,99119.0,0.00042145]
[1736959726440,0.49541792,99132.0,99131.0,0.0018546]
[1736959726593,0.48841792,99132.0,99131.0,0.0008546]
[1736959726810,0.49441792,99132.0,99131.0,0.0018546]
[1736959727220,0.49741792,99132.0,99131.0,0.0018546]
[1736959728116,0.384191,99132.0,99131.0,0.0008546]
[1736959728316,0.389191,99132.0,99131.0,0.3034846]
[1736959728521,0.382751,99132.0,99131.0,0.3034846]
[1736959728727,0.385191,99132.0,99131.0,1.81232689]
[1736959728957,0.394191,99132.0,99131.0,1.81232689]
[1736959729293,0.381191,99132.0,99131.0,1.81232689]
[1736959729604,0.152,99132.0,99131.0,1.81274834]
[1736959729810,0.002,99132.0,99131.0,1.81274834]
[1736959729952,0.023,99136.0,99131.0,1.81274834]
[1736959730157,0.023,99136.0,99135.0,0.00042145]
[1736959730467,0.023,99140.0,99139.0,0.00042145]
[1736959730712,0.173,99140.0,99139.0,0.30303145]
[1736959731007,0.173,99140.0,99139.0,0.31182935]
[1736959731479,0.173,99140.0,99139.0,1.81182935]
[1736959732034,0.15,99144.0,99143.0,0.00042145]
[1736959732230,0.173,99144.0,99143.0,0.31180393]
[1736959732748,0.173,99144.0,99143.0,1.81180393]
[1736959733372,0.173,99144.0,99143.0,1.81138248]
[1736959733579,0.175,99144.0,99143.0,0.31138248]
[1736959735002,0.18144,99144.0,99143.0,0.31138248]
[1736959735357,0.17944,99144.0,99143.0,0.31138248]
[1736959735564,0.18044,99144.0,99143.0,0.31138248]
[1736959735777,0.17944,99144.0,99143.0,0.31138248]
[1736959736204,0.18644,99144.0,99143.0,0.31138248]
[1736959736596,0.175,99144.0,99143.0,0.31138248]
[1736959736760,0.18444,99144.0,99143.0,0.31138248]
[1736959737398,0.18644,99144.0,99143.0,0.31138248]
[1736959738124,0.18144,99144.0,99143.0,0.31138248]
[1736959738481,0.18644,99144.0,99143.0,0.31138248]
[1736959739123,0.18444,99144.0,99143.0,0.31138248]
[1736959739406,0.18644,99144.0,99143.0,0.31138248]
[1736959740178,0.18,99144.0,99143.0,0.31138248]
[1736959740409,0.18444,99144.0,99143.0,0.31138248]
[1736959740618,0.18444,99144.0,99143.0,0.31180393]
[1736959741028,0.17944,99144.0,99143.0,1.81180393]
[1736959741459,0.178,99144.0,99143.0,1.81180393]
[1736959741668,0.17944,99144.0,99143.0,1.81180393]
[1736959741880,0.18644,99144.0,99143.0,0.31180393]
[1736959742058,0.18644,99144.0,99143.0,0.31138248]
[1736959742263,0.28366692,99144.0,99143.0,0.31138248]
[1736959742486,0.28866692,99144.0,99143.0,0.31138248]
[1736959742688,0.36616692,99144.0,99143.0,0.31138248]